fUST/lending_fUST_20240919
["ID","MTS","AMOUNT","RATE_DAILY","PERIOD"]
[338560056,1726734355140,-169.98767931,0.00015701,2]
[338560057,1726734355163,-166.58744,0.00015801,2]
[338560058,1726734355186,-327.55175036,0.00015953,2]
[338560073,1726734548134,-166.58744,0.00015966,2]
[338560074,1726734548155,-500.0,0.00016053,2]
[338560075,1726734548177,-166.58744,0.0001613,2]
[338560076,1726734548197,-747.654871,0.0001625,2]
[338560077,1726734548218,-166.58744,0.00016295,2]
[338560078,1726734548238,-512.05385553,0.00016374,2]
[338560079,1726734554112,-407.37544847,0.00016374,2]
[338560080,1726734554135,-166.58744,0.0001646,2]
[338560081,1726734554158,-159.3612163,0.0001647,2]
[338560082,1726734554180,-166.58744,0.00016625,2]
[338560083,1726734554201,-808.29318041,0.000167,2]
[338560087,1726734569127,-415.02577788,0.000167,2]
[338560090,1726734611252,500.0,0.00016053,2]
[338560119,1726734632487,282.23446335,0.00016926,2]
[338560136,1726734632644,-1000.0,0.00016926,2]
[338560171,1726734638932,-2312.68930473,0.00016926,2]
[338560172,1726734638943,-169.10378379,0.00017026,2]
[338560173,1726734638953,-300.0,0.00017126,2]
[338560174,1726734638962,-300.0,0.00017126,2]
[338560175,1726734638972,-3988.33668668,0.00017127,2]
[338560186,1726734642003,-20911.66331332,0.00017127,2]
[338560188,1726734642013,-459.714652,0.00017208,2]
[338560189,1726734642023,-160.712305,0.00017485,2]
[338560190,1726734642033,-160.712305,0.00017507,2]
[338560191,1726734642044,-160.712305,0.00017529,2]
[338560192,1726734642053,-160.712305,0.0001755,2]
[338560193,1726734642063,-160.712305,0.00017572,2]
[338560194,1726734642072,-169.10378378,0.00017582,2]
[338560195,1726734642082,-500.0,0.00017808,2]
[338560196,1726734642091,-1004.90529859,0.00018041,2]
[338560197,1726734642101,-169.10378378,0.00018137,2]
[338560198,1726734642110,-1065.79578013,0.00018447,2]
[338560199,1726734642170,-4949.41584897,0.00018447,2]
[338560200,1726734642180,-1000.0,0.000185,2]
[338560201,1726734642191,-166.67,0.000185,2]
[338560202,1726734642202,-166.67,0.000185,2]
[338560203,1726734642213,-166.66,0.000185,2]
[338560204,1726734642223,-229.40765,0.00018603,2]
[338560205,1726734642233,-168.29875,0.00018603,2]
[338560206,1726734642246,-228.817496,0.00018603,2]
[338560207,1726734642256,-169.10378378,0.00018693,2]
[338560208,1726734642266,-420.0,0.00018703,2]
[338560209,1726734642276,-500.0,0.00018793,2]
[338560210,1726734642286,-229.40765,0.00018836,2]
[338560211,1726734642295,-228.817496,0.00018836,2]
[338560212,1726734642308,-420.0,0.00018838,2]
[338560213,1726734642318,-639.24526493,0.00018943,2]
[338560214,1726734642329,-1000.0,0.00019,2]
[338560215,1726734642340,-299.4488586,0.00019,2]
[338560216,1726734642354,-270.9449064,0.00019,2]
[338560217,1726734642364,-11545.8660186,0.00019,2]
[338560218,1726734642380,-11159.7639814,0.00019,2]
[338560219,1726734642391,-229.40765,0.00019068,2]
[338560220,1726734642400,-228.817496,0.00019068,2]
[338560221,1726734642410,-847.01,0.0001914,3]
[338560222,1726734642419,-423.51,0.0001914,3]
[338560223,1726734642428,-211.75,0.0001914,3]
[338560224,1726734642437,-2446.97529866,0.0001914,3]
[338560225,1726734642446,-25471.3672845,0.0001914,3]
[338560226,1726734642455,-34123.29535592,0.0001915,2]
[338560227,1726734642465,-901.780879,0.00019178,2]
[338560228,1726734642475,-153.0,0.00019178,2]
[338560229,1726734642484,-153.0,0.00019178,2]
[338560230,1726734642494,-153.0,0.00019178,2]
[338560231,1726734642503,-153.0,0.00019178,2]
[338560232,1726734642513,-153.0,0.00019178,2]
[338560233,1726734642521,-185.0,0.00019178,2]
[338560234,1726734642530,-185.0,0.00019178,2]
[338560235,1726734642539,-185.0,0.00019178,2]
[338560236,1726734642549,-185.0,0.00019178,2]
[338560237,1726734642558,-185.0,0.00019178,2]
[338560238,1726734642567,-185.0,0.00019178,2]
[338560239,1726734642576,-185.0,0.00019178,2]
[338560240,1726734642586,-185.0,0.00019178,2]
[338560241,1726734642595,-185.0,0.00019178,2]
[338560242,1726734642605,-185.0,0.00019178,2]
[338560243,1726734642614,-185.0,0.00019178,2]
[338560244,1726734642623,-153.0,0.00019178,2]
[338560245,1726734642632,-153.0,0.00019178,2]
[338560246,1726734642643,-153.0,0.00019178,2]
[338560247,1726734642653,-153.0,0.00019178,2]
[338560248,1726734642662,-153.0,0.00019178,2]
[338560249,1726734642672,-153.0,0.00019178,2]
[338560250,1726734642682,-153.0,0.00019178,2]
[338560251,1726734642691,-185.0,0.00019178,2]
[338560252,1726734642700,-185.0,0.00019178,2]
[338560253,1726734642709,-185.0,0.00019178,2]
[338560254,1726734642719,-185.0,0.00019178,2]
[338560255,1726734642729,-185.0,0.00019178,2]
[338560256,1726734642738,-185.0,0.00019178,2]
[338560257,1726734642747,-185.0,0.00019178,2]
[338560258,1726734642756,-185.0,0.00019178,2]
[338560259,1726734642765,-185.0,0.00019178,2]
[338560260,1726734642775,-185.0,0.00019178,2]
[338560261,1726734642785,-185.0,0.00019178,2]
[338560262,1726734642794,-185.0,0.00019178,2]
[338560263,1726734642803,-185.0,0.00019178,2]
[338560264,1726734642812,-185.0,0.00019178,2]
[338560265,1726734642822,-174.68393,0.00019178,2]
[338560266,1726734642831,-708.35,0.000192,2]
[338560267,1726734642840,-229.40765,0.00019301,2]
[338560268,1726734642849,-228.817496,0.00019301,2]
[338560269,1726734642858,-524.0,0.00019384,2]
[338560270,1726734642868,-150.0,0.00019384,2]
[338560271,1726734642878,-1216.0,0.00019384,2]
[338560272,1726734642888,-1000.0,0.000195,2]
[338560273,1726734642900,-570.393765,0.000195,2]
[338560274,1726734642911,-229.40765,0.00019533,2]
[338560275,1726734642922,-228.817496,0.00019533,2]
[338560276,1726734642933,-1012.68825475,0.00019759,2]
[338560277,1726734642943,-37.69571475,0.00019774,2]
[338560294,1726734643690,-5412.83098925,0.00019774,2]
[338560295,1726734643700,-1000.0,0.00019819,2]
[338560296,1726734643711,-500.0,0.00019856,2]
[338560297,1726734643721,-600.0,0.00019856,2]
[338560298,1726734643732,-500.0,0.00019856,2]
[338560299,1726734643743,-554.82121696,0.00019856,2]
[338560300,1726734643754,-500.0,0.00019856,2]
[338560301,1726734643763,-554.82121696,0.00019856,2]
[338560302,1726734643773,-500.0,0.00019856,2]
[338560303,1726734643782,-500.0,0.00019856,2]
[338560304,1726734643792,-554.82121696,0.00019856,2]
[338560305,1726734643801,-438.92778967,0.00019856,2]
[338560306,1726734643811,-500.0,0.00019856,2]
[338560307,1726734643820,-554.82121696,0.00019856,2]
[338560308,1726734643830,-554.82121696,0.00019856,2]
[338560309,1726734643838,-500.0,0.00019856,2]
[338560310,1726734643847,-554.82121696,0.00019856,2]
[338560311,1726734643857,-554.82121696,0.00019856,2]
[338560312,1726734643867,-500.0,0.00019856,2]
[338560313,1726734643877,-554.82121696,0.00019856,2]
[338560314,1726734643887,-500.0,0.00019856,2]
[338560315,1726734643899,-554.82121696,0.00019856,2]
[338560316,1726734643909,-500.0,0.00019856,2]
[338560317,1726734643922,-554.82121696,0.00019856,2]
[338560318,1726734643931,-500.0,0.00019856,2]
[338560319,1726734643942,-554.82121696,0.00019856,2]
[338560320,1726734643952,-500.0,0.00019856,2]
[338560321,1726734643963,-554.82121696,0.00019856,2]
[338560323,1726734643972,-500.0,0.00019856,2]
[338560324,1726734643982,-554.82121696,0.00019856,2]
[338560326,1726734643991,-500.0,0.00019856,2]
[338560328,1726734644001,-554.82121696,0.00019856,2]
[338560330,1726734644010,-500.0,0.00019856,2]
[338560332,1726734644019,-554.82121696,0.00019856,2]
[338560333,1726734644028,-500.0,0.00019856,2]
[338560335,1726734644037,-554.82121696,0.00019856,2]
[338560337,1726734644046,-500.0,0.00019856,2]
[338560338,1726734644056,-500.0,0.00019856,2]
[338560340,1726734644065,-554.82121696,0.00019856,2]
[338560341,1726734644076,-500.0,0.00019856,2]
[338560342,1726734644086,-554.82121696,0.00019856,2]
[338560343,1726734644098,-500.0,0.00019856,2]
[338560344,1726734644110,-554.82121696,0.00019856,2]
[338560345,1726734644120,-500.0,0.00019856,2]
[338560346,1726734644131,-554.82121696,0.00019856,2]
[338560347,1726734644143,-554.82121696,0.00019856,2]
[338560348,1726734644154,-500.0,0.00019856,2]
[338560349,1726734644167,-500.0,0.00019856,2]
[338560350,1726734644178,-554.82121696,0.00019856,2]
[338560351,1726734644188,-554.82121696,0.00019856,2]
[338560352,1726734644198,-554.82121696,0.00019856,2]
[338560353,1726734644210,-500.0,0.00019856,2]
[338560354,1726734644221,-500.0,0.00019856,2]
[338560355,1726734644232,-554.82121696,0.00019856,2]
[338560356,1726734644248,-554.82121696,0.00019856,2]
[338560357,1726734644259,-554.82121696,0.00019856,2]
[338560358,1726734644268,-500.0,0.00019856,2]
[338560359,1726734644278,-554.82121696,0.00019856,2]
[338560360,1726734644287,-495.09017497,0.00019856,2]
[338560361,1726734644296,-554.82121696,0.00019856,2]
[338560362,1726734644306,-554.82121696,0.00019856,2]
[338560363,1726734644315,-500.0,0.00019856,2]
[338560364,1726734644324,-554.82121696,0.00019856,2]
[338560365,1726734644334,-500.0,0.00019856,2]
[338560366,1726734644343,-554.82121696,0.00019856,2]
[338560367,1726734644353,-554.82121696,0.00019856,2]
[338560368,1726734644362,-500.0,0.00019856,2]
[338560369,1726734644372,-554.82121696,0.00019856,2]
[338560370,1726734644381,-554.82121696,0.00019856,2]
[338560371,1726734644391,-500.0,0.00019856,2]
[338560372,1726734644400,-554.82121696,0.00019856,2]
[338560373,1726734644409,-554.82121696,0.00019856,2]
[338560374,1726734644418,-500.0,0.00019856,2]
[338560375,1726734644428,-554.82121696,0.00019856,2]
[338560376,1726734644437,-554.82121696,0.00019856,2]
[338560377,1726734644447,-554.82121696,0.00019856,2]
[338560378,1726734644456,-554.82121696,0.00019856,2]
[338560379,1726734644465,-554.82121696,0.00019856,2]
[338560380,1726734644476,-554.82121696,0.00019856,2]
[338560381,1726734644485,-554.82121696,0.00019856,2]
[338560382,1726734644494,-554.82121696,0.00019856,2]
[338560383,1726734644504,-554.82121696,0.00019856,2]
[338560384,1726734644514,-554.82121696,0.00019856,2]
[338560385,1726734644523,-554.82121696,0.00019856,2]
[338560386,1726734644534,-554.82121696,0.00019856,2]
[338560387,1726734644546,-554.82121696,0.00019856,2]
[338560388,1726734644556,-554.82121696,0.00019856,2]
[338560389,1726734644566,-554.82121696,0.00019856,2]
[338560390,1726734644578,-554.82121696,0.00019856,2]
[338560391,1726734644590,-554.82121696,0.00019856,2]
[338560392,1726734644600,-554.82121696,0.00019856,2]
[338560393,1726734644612,-2446.97529866,0.00019858,3]
[338560394,1726734644621,-25471.3672845,0.00019858,3]
[338560395,1726734644632,-979.79682582,0.00019858,2]
[338560396,1726734644644,-901.780879,0.00019863,2]
[338560397,1726734644655,-3109.26072363,0.00019868,2]
[338560426,1726734646582,-589.00573751,0.00019868,2]
[338561622,1726735487393,200.0,0.0002051,120]
[338561623,1726735535146,-412.7596037,0.00015575,2]
[338561624,1726735535168,-183.006381,0.00015839,2]
[338561625,1726735535189,-162.846435,0.00015953,2]
[338561626,1726735535210,-183.006381,0.00016045,2]
[338561627,1726735535232,-500.0,0.00016053,2]
[338561628,1726735535253,-442.8635727,0.00016192,2]
[338561629,1726735535275,-183.006381,0.00016252,2]
[338561630,1726735535297,-183.006381,0.00016458,2]
[338561631,1726735535318,-183.006381,0.00016664,2]
[338561632,1726735535338,-300.0,0.00016813,2]
[338561633,1726735535360,-24900.0,0.00016814,2]
[338561634,1726735535382,-503.162033,0.00016835,2]
[338561635,1726735535403,-18819.3993279,0.0001764,2]
[338561636,1726735535424,-500.0,0.00017808,2]
[338561637,1726735535446,-420.0,0.00018494,2]
[338561638,1726735535468,-1000.0,0.000185,2]
[338561639,1726735535489,-152.544998,0.00018603,2]
[338561640,1726735535510,-152.938434,0.00018603,2]
[338561641,1726735535535,-228.817498,0.00018603,2]
[338561642,1726735535556,-229.40765,0.00018603,2]
[338561643,1726735535576,-500.0,0.00018793,2]
[338561644,1726735535598,-150.0,0.00018933,2]
[338561645,1726735535625,-1000.0,0.00019,2]
[338561646,1726735535647,-500.0,0.00019,2]
[338561647,1726735535917,-152.544998,0.00019068,2]
[338561648,1726735535939,-152.938434,0.00019068,2]
[338561649,1726735535959,-184.622714,0.00019178,2]
[338561650,1726735535980,-153.0,0.00019178,2]
[338561651,1726735536000,-153.0,0.00019178,2]
[338561652,1726735536021,-153.0,0.00019178,2]
[338561653,1726735536042,-153.0,0.00019178,2]
[338561654,1726735536064,-153.0,0.00019178,2]
[338561655,1726735536086,-186.0,0.00019178,2]
[338561656,1726735536106,-186.0,0.00019178,2]
[338561657,1726735536125,-186.0,0.00019178,2]
[338561658,1726735536147,-186.0,0.00019178,2]
[338561659,1726735536168,-186.0,0.00019178,2]
[338561660,1726735536188,-186.0,0.00019178,2]
[338561661,1726735536210,-186.0,0.00019178,2]
[338561662,1726735536229,-186.0,0.00019178,2]
[338561663,1726735536249,-186.0,0.00019178,2]
[338561664,1726735536269,-186.0,0.00019178,2]
[338561665,1726735536290,-186.0,0.00019178,2]
[338561666,1726735536309,-186.0,0.00019178,2]
[338561667,1726735536329,-186.0,0.00019178,2]
[338561668,1726735536349,-186.0,0.00019178,2]
[338561669,1726735536369,-901.78088,0.00019178,2]
[338561670,1726735536390,-153.0,0.00019178,2]
[338561671,1726735536410,-153.0,0.00019178,2]
[338561672,1726735536433,-153.0,0.00019178,2]
[338561673,1726735536455,-153.0,0.00019178,2]
[338561674,1726735536476,-153.0,0.00019178,2]
[338561675,1726735536496,-153.0,0.00019178,2]
[338561676,1726735536516,-153.0,0.00019178,2]
[338561677,1726735536540,-153.0,0.00019178,2]
[338561678,1726735536559,-186.0,0.00019178,2]
[338561679,1726735536580,-186.0,0.00019178,2]
[338561680,1726735536600,-186.0,0.00019178,2]
[338561681,1726735536622,-186.0,0.00019178,2]
[338561682,1726735536649,-186.0,0.00019178,2]
[338561683,1726735536670,-186.0,0.00019178,2]
[338561684,1726735536690,-186.0,0.00019178,2]
[338561685,1726735536711,-186.0,0.00019178,2]
[338561686,1726735536732,-186.0,0.00019178,2]
[338561687,1726735536752,-186.0,0.00019178,2]
[338561688,1726735536773,-186.0,0.00019178,2]
[338561689,1726735536792,-186.0,0.00019178,2]
[338561690,1726735536813,-186.0,0.00019178,2]
[338561691,1726735536833,-186.0,0.00019178,2]
[338561692,1726735536854,-153.0,0.00019178,2]
[338561693,1726735536875,-153.0,0.00019178,2]
[338561694,1726735536897,-153.0,0.00019178,2]
[338561695,1726735536918,-153.0,0.00019178,2]
[338561696,1726735536939,-153.0,0.00019178,2]
[338561697,1726735536960,-153.0,0.00019178,2]
[338561698,1726735536981,-153.0,0.00019178,2]
[338561699,1726735537000,-186.0,0.00019178,2]
[338561700,1726735537020,-186.0,0.00019178,2]
[338561701,1726735537040,-186.0,0.00019178,2]
[338561702,1726735537060,-186.0,0.00019178,2]
[338561703,1726735537081,-186.0,0.00019178,2]
[338561704,1726735537102,-186.0,0.00019178,2]
[338561705,1726735537123,-186.0,0.00019178,2]
[338561706,1726735537146,-186.0,0.00019178,2]
[338561707,1726735537167,-186.0,0.00019178,2]
[338561708,1726735537189,-186.0,0.00019178,2]
[338561709,1726735537210,-186.0,0.00019178,2]
[338561710,1726735537230,-186.0,0.00019178,2]
[338561711,1726735537250,-186.0,0.00019178,2]
[338561712,1726735537271,-186.0,0.00019178,2]
[338561713,1726735537292,-153.0,0.00019178,2]
[338561714,1726735537312,-153.0,0.00019178,2]
[338561715,1726735537333,-153.0,0.00019178,2]
[338561716,1726735537354,-153.0,0.00019178,2]
[338561717,1726735537376,-153.0,0.00019178,2]
[338561718,1726735537400,-153.0,0.00019178,2]
[338561719,1726735537422,-153.0,0.00019178,2]
[338561720,1726735537442,-153.0,0.00019178,2]
[338561721,1726735537463,-185.0,0.00019178,2]
[338561722,1726735537483,-185.0,0.00019178,2]
[338561723,1726735537503,-185.0,0.00019178,2]
[338561724,1726735537525,-185.0,0.00019178,2]
[338561725,1726735537550,-185.0,0.00019178,2]
[338561726,1726735537570,-185.0,0.00019178,2]
[338561727,1726735537594,-185.0,0.00019178,2]
[338561728,1726735537616,-185.0,0.00019178,2]
[338561729,1726735537638,-185.0,0.00019178,2]
[338561730,1726735537658,-185.0,0.00019178,2]
[338561731,1726735537678,-185.0,0.00019178,2]
[338561732,1726735537702,-185.0,0.00019178,2]
[338561733,1726735537726,-185.0,0.00019178,2]
[338561734,1726735537749,-185.0,0.00019178,2]
[338561735,1726735537771,-153.0,0.00019178,2]
[338561736,1726735537792,-153.0,0.00019178,2]
[338561737,1726735537813,-153.0,0.00019178,2]
[338561738,1726735537835,-153.0,0.00019178,2]
[338561739,1726735537856,-153.0,0.00019178,2]
[338561740,1726735537877,-153.0,0.00019178,2]
[338561741,1726735537899,-153.0,0.00019178,2]
[338561742,1726735537920,-185.0,0.00019178,2]
[338561743,1726735537941,-185.0,0.00019178,2]
[338561744,1726735537961,-185.0,0.00019178,2]
[338561745,1726735537982,-185.0,0.00019178,2]
[338561746,1726735538003,-185.0,0.00019178,2]
[338561747,1726735538025,-185.0,0.00019178,2]
[338561748,1726735538046,-185.0,0.00019178,2]
[338561749,1726735538068,-185.0,0.00019178,2]
[338561750,1726735538089,-185.0,0.00019178,2]
[338561751,1726735538112,-185.0,0.00019178,2]
[338561752,1726735538136,-185.0,0.00019178,2]
[338561753,1726735538157,-185.0,0.00019178,2]
[338561754,1726735538179,-185.0,0.00019178,2]
[338561755,1726735538199,-185.0,0.00019178,2]
[338561756,1726735538220,-708.35,0.000192,2]
[338561757,1726735538241,-500.0,0.000192,2]
[338561758,1726735538261,-150.19125691,0.00019382,2]
[338561759,1726735538281,-150.0,0.00019471,2]
[338561760,1726735538302,-524.0,0.00019471,2]
[338561761,1726735538323,-1216.0,0.00019471,2]
[338561762,1726735538344,-500.0,0.000195,2]
[338561763,1726735538364,-1000.0,0.000195,2]
[338561764,1726735538386,-152.544998,0.00019533,2]
[338561765,1726735538406,-152.938434,0.00019533,2]
[338561766,1726735538431,-1012.68825475,0.00019746,2]
[338561767,1726735538452,-979.79682582,0.00019781,2]
[338561768,1726735538474,-3109.26072363,0.0001979,2]
[338561769,1726735538497,-154.25443305,0.00019803,2]
[338561770,1726735538520,-153.0,0.00019833,2]
[338561771,1726735538549,-153.0,0.00019833,2]
[338561772,1726735538571,-153.0,0.00019833,2]
[338561773,1726735538593,-153.0,0.00019833,2]
[338561774,1726735538614,-153.0,0.00019833,2]
[338561775,1726735538637,-153.0,0.00019833,2]
[338561776,1726735538657,-153.0,0.00019833,2]
[338561777,1726735538677,-186.0,0.00019833,2]
[338561778,1726735538697,-186.0,0.00019833,2]
[338561779,1726735538719,-186.0,0.00019833,2]
[338561780,1726735538738,-186.0,0.00019833,2]
[338561781,1726735538759,-186.0,0.00019833,2]
[338561782,1726735538779,-186.0,0.00019833,2]
[338561783,1726735538799,-186.0,0.00019833,2]
[338561784,1726735538819,-186.0,0.00019833,2]
[338561785,1726735538840,-186.0,0.00019833,2]
[338561786,1726735538861,-186.0,0.00019833,2]
[338561787,1726735538881,-186.0,0.00019833,2]
[338561788,1726735538902,-186.0,0.00019833,2]
[338561789,1726735538922,-847.01,0.00019855,3]
[338561790,1726735538942,-901.78088,0.00019863,2]
[338561791,1726735538963,-500.0,0.00019865,2]
[338561792,1726735538983,-500.0,0.00019865,2]
[338561793,1726735539008,-500.0,0.00019865,2]
[338561794,1726735539030,-500.0,0.00019865,2]
[338561795,1726735539054,-403.11979394,0.00019865,2]
[338561796,1726735539075,-500.0,0.00019865,2]
[338561797,1726735539100,-500.0,0.00019865,2]
[338561798,1726735539122,-500.0,0.00019865,2]
[338561799,1726735539146,-500.0,0.00019865,2]
[338561800,1726735539168,-500.0,0.00019865,2]
[338561801,1726735539190,-500.0,0.00019865,2]
[338561802,1726735539212,-500.0,0.00019865,2]
[338561803,1726735539234,-500.0,0.00019865,2]
[338561804,1726735539255,-500.0,0.00019865,2]
[338561805,1726735539277,-500.0,0.00019865,2]
[338561806,1726735539298,-500.0,0.00019865,2]
[338561807,1726735539320,-500.0,0.00019865,2]
[338561808,1726735539341,-500.0,0.00019865,2]
[338561809,1726735539364,-500.0,0.00019865,2]
[338561810,1726735539387,-500.0,0.00019865,2]
[338561811,1726735539407,-265.33295739,0.00019865,2]
[338561812,1726735539428,-500.0,0.00019865,2]
[338561813,1726735539450,-500.0,0.00019865,2]
[338561814,1726735539471,-500.0,0.00019865,2]
[338561815,1726735539492,-696.12194605,0.00019865,2]
[338561816,1726735539514,-500.0,0.00019865,2]
[338561817,1726735539539,-696.12194605,0.00019865,2]
[338561818,1726735539561,-500.0,0.00019865,2]
[338561819,1726735539583,-696.12194605,0.00019865,2]
[338561820,1726735539606,-500.0,0.00019865,2]
[338561821,1726735539632,-696.12194605,0.00019865,2]
[338561822,1726735539654,-500.0,0.00019865,2]
[338561823,1726735539677,-696.12194605,0.00019865,2]
[338561824,1726735539912,-500.0,0.00019865,2]
[338561825,1726735539935,-696.12194605,0.00019865,2]
[338561826,1726735539956,-500.0,0.00019865,2]
[338561827,1726735539978,-696.12194605,0.00019865,2]
[338561828,1726735539999,-500.0,0.00019865,2]
[338561829,1726735540021,-474.09521927,0.00019865,2]
[338561832,1726735636155,-500.0,0.00017149,2]
[338561833,1726735636178,-251.581017,0.00018523,2]
[338561834,1726735636207,-162.47831054,0.00019078,2]
[338561835,1726735636228,-300.0,0.00019177,2]
[338561836,1726735636250,-300.0,0.00019177,2]
[338561837,1726735636272,-153.0,0.00019178,2]
[338561838,1726735636293,-153.0,0.00019178,2]
[338561839,1726735636314,-153.0,0.00019178,2]
[338561840,1726735636336,-153.0,0.00019178,2]
[338561841,1726735636356,-153.0,0.00019178,2]
[338561842,1726735636376,-153.0,0.00019178,2]
[338561843,1726735636397,-153.0,0.00019178,2]
[338561844,1726735636418,-153.0,0.00019178,2]
[338561845,1726735636438,-153.0,0.00019178,2]
[338561846,1726735636461,-153.0,0.00019178,2]
[338561847,1726735636481,-153.0,0.00019178,2]
[338561848,1726735636502,-153.0,0.00019178,2]
[338561849,1726735636522,-153.0,0.00019178,2]
[338561850,1726735636543,-153.0,0.00019178,2]
[338561851,1726735636564,-153.0,0.00019178,2]
[338561852,1726735636587,-153.0,0.00019178,2]
[338561853,1726735636607,-153.0,0.00019178,2]
[338561854,1726735636628,-153.0,0.00019178,2]
[338561855,1726735636650,-153.0,0.00019178,2]
[338561856,1726735636670,-153.0,0.00019178,2]
[338561857,1726735636691,-153.0,0.00019178,2]
[338561858,1726735636715,-637.52,0.000192,2]
[338561859,1726735636736,-500.0,0.000192,2]
[338561860,1726735636756,-500.0,0.00019341,2]
[338561861,1726735636776,-524.0,0.00019471,2]
[338561862,1726735636796,-150.0,0.00019471,2]
[338561863,1726735636816,-1216.0,0.00019471,2]
[338561864,1726735636837,-415.0948282,0.0001962,2]
[338561865,1726735636857,-162.47831053,0.00019765,2]
[338561866,1726735636878,-4464.7861202,0.00019765,2]
[338561867,1726735636898,-423.51,0.00019855,3]
[338561868,1726735636919,-211.75,0.00019856,3]
[338561869,1726735636939,-635.29,0.00019856,3]
[338561870,1726735636962,-222.02672678,0.00019865,2]
[338561871,1726735636984,-696.12194605,0.00019865,2]
[338561872,1726735637005,-500.0,0.00019865,2]
[338561873,1726735637027,-696.12194605,0.00019865,2]
[338561874,1726735637048,-500.0,0.00019865,2]
[338561875,1726735637068,-696.12194605,0.00019865,2]
[338561876,1726735637088,-396.84685308,0.00019865,2]
[338561877,1726735637110,-326.70029852,0.00019865,2]
[338561878,1726735641101,-369.42164753,0.00019865,2]
[338561879,1726735641124,-500.0,0.00019865,2]
[338561880,1726735641148,-696.12194605,0.00019865,2]
[338561881,1726735641172,-500.0,0.00019865,2]
[338561882,1726735641196,-500.0,0.00019865,2]
[338561883,1726735641220,-696.12194605,0.00019865,2]
[338561884,1726735641244,-500.0,0.00019865,2]
[338561885,1726735641271,-696.12194605,0.00019865,2]
[338561886,1726735641295,-500.0,0.00019865,2]
[338561887,1726735641319,-696.12194605,0.00019865,2]
[338561888,1726735641342,-500.0,0.00019865,2]
[338561889,1726735641364,-696.12194605,0.00019865,2]
[338561890,1726735641386,-500.0,0.00019865,2]
[338561891,1726735641410,-696.12194605,0.00019865,2]
[338561892,1726735641432,-500.0,0.00019865,2]
[338561893,1726735641454,-696.12194605,0.00019865,2]
[338561894,1726735641481,-696.12194605,0.00019865,2]
[338561895,1726735641501,-696.12194605,0.00019865,2]
[338561896,1726735641525,-696.12194605,0.00019865,2]
[338561897,1726735641548,-696.12194605,0.00019865,2]
[338561898,1726735641573,-696.12194605,0.00019865,2]
[338561899,1726735641597,-696.12194605,0.00019865,2]
[338561900,1726735641622,-500.0,0.00019865,2]
[338561901,1726735641649,-696.12194605,0.00019865,2]
[338561902,1726735641672,-500.0,0.00019865,2]
[338561903,1726735641696,-696.12194605,0.00019865,2]
[338561904,1726735641723,-696.12194605,0.00019865,2]
[338561905,1726735641747,-500.0,0.00019865,2]
[338561906,1726735641769,-696.12194605,0.00019865,2]
[338561907,1726735641794,-500.0,0.00019865,2]
[338561908,1726735641818,-696.12194605,0.00019865,2]
[338561909,1726735641841,-500.0,0.00019865,2]
[338561910,1726735641862,-696.12194605,0.00019865,2]
[338561911,1726735641884,-500.0,0.00019865,2]
[338561912,1726735641905,-500.0,0.00019865,2]